bitfinex-derivatives/quotes_ETHF0:USTF0_20250114
["timestamp","ask_amount","ask_price","bid_price","bid_amount"]
[1736823579774,3.6895,3159.7,3159.3,0.4653]
[1736823579977,0.31661,3159.6,3159.3,0.78193]
[1736823580178,0.31661,3159.6,3159.3,0.4653]
[1736823580781,0.31661,3159.6,3159.3,0.78193]
[1736823583183,3.6895,3159.7,3159.3,0.4653]
[1736823583382,0.31662,3159.5,3159.3,0.4653]
[1736823583883,0.31661,3159.6,3159.3,0.78193]
[1736823584079,0.31661,3159.6,3159.4,0.4783]
[1736823584583,3.6895,3159.7,3159.4,0.4783]
[1736823584783,0.31662,3159.5,3159.4,0.4783]
[1736823584979,3.6895,3159.7,3159.4,0.4783]
[1736823585182,0.31661,3159.6,3159.4,0.4783]
[1736823586189,0.31662,3159.5,3159.4,0.4783]
[1736823586690,3.6895,3159.7,3159.4,0.4783]
[1736823586889,4.0061,3159.7,3159.5,0.77191]
[1736823588990,0.4817,3159.7,3159.5,0.4553]
[1736823589183,0.4817,3159.7,3159.6,0.31661]
[1736823589383,0.72041833,3159.7,3159.6,0.31661]
[1736823589584,0.23871833,3159.7,3159.6,0.31661]
[1736823591489,0.55531833,3159.7,3159.5,0.77191]
[1736823593185,0.31661,3159.6,3159.5,0.4553]
[1736823593492,0.55531833,3159.7,3159.5,0.77192]
[1736823594484,0.23871833,3159.7,3159.4,0.4783]
[1736823594795,0.31662,3159.5,3159.4,0.4783]
[1736823596189,1.39957985,3159.5,3159.4,0.4783]
[1736823596592,0.31661,3159.6,3159.4,0.79493]
[1736823597198,0.31661,3159.6,3159.4,0.4783]
[1736823597494,0.55531833,3159.7,3159.5,0.31661]
[1736823597993,0.23871833,3159.7,3159.5,0.31661]
[1736823598197,0.55531833,3159.7,3159.5,0.31661]
[1736823598693,0.31661,3159.6,3159.4,0.4783]
[1736823599998,0.23871833,3159.7,3159.4,0.4783]
[1736823600195,1.08295985,3159.6,3159.3,0.4653]
[1736823600496,0.23871833,3159.7,3159.1,3.2078]
[1736823600497,0.31665,3159.2,3159.1,3.2078]
[1736823600801,1.39960985,3159.2,3159.1,3.2078]
[1736823601691,0.31667,3159.0,3158.8,2.36295985]
[1736823601898,0.4898,3158.9,3158.8,2.67964985]
[1736823602092,0.4661,3159.5,3158.8,2.36295985]
[1736823602300,0.31659,3159.8,3159.4,1.08295985]
[1736823602607,0.31659,3159.8,3159.5,4.11966985]
[1736823602997,0.3166,3159.7,3159.5,2.7201]
[1736823603395,0.9606,3160.0,3159.5,2.7201]
[1736823603600,0.3166,3159.7,3159.5,2.7201]
[1736823605101,0.4855,3159.9,3159.5,3.03671]
[1736823605415,0.31658,3159.9,3159.7,0.31659]
[1736823606008,0.31658,3159.9,3159.5,2.7201]
[1736823606203,0.31658,3159.9,3159.6,0.3166]
[1736823607101,4.1684,3160.0,3159.7,0.31659]
[1736823607303,0.31658,3159.9,3159.7,0.31659]
[1736823607706,0.31658,3159.9,3159.5,2.7201]
[1736823607908,0.62580466,3160.3,3160.1,0.31655]
[1736823608108,0.4963,3160.6,3160.2,1.4255]
[1736823608407,3.2078,3160.4,3159.7,5.74958178]
[1736823608603,3.2078,3160.4,3159.9,0.31657]
[1736823608808,0.31655,3160.2,3159.9,0.31657]
[1736823609003,2.54178178,3160.3,3159.8,1.4356]
[1736823609205,3.2078,3159.9,3159.0,3.2078]
[1736823609410,0.31665,3159.2,3159.1,0.478]
[1736823609605,0.31664,3159.3,3159.1,0.478]
[1736823610604,1.29992,3159.5,3159.2,0.31664]
[1736823611308,1.29992,3159.5,3159.1,0.79465]
[1736823611309,0.31663,3159.4,3159.1,0.79465]
[1736823611504,0.9833,3159.5,3159.1,0.478]
[1736823611906,0.31663,3159.4,3159.1,0.79465]
[1736823612107,0.31664,3159.3,3159.1,0.478]
[1736823612815,0.31665,3159.2,3159.1,0.478]
[1736823613310,0.31665,3159.2,3159.0,5.4398]
[1736823614310,0.239458,3159.3,3159.0,5.4398]
[1736823614713,0.31665,3159.2,3159.0,5.4398]
[1736823615113,0.31665,3159.2,3159.0,5.75647]
[1736823615712,0.239458,3159.3,3159.0,5.75647]
[1736823616012,0.31664,3159.3,3159.0,5.75647]
[1736823616411,0.31664,3159.3,3159.0,1.26867]
[1736823617117,0.31664,3159.3,3159.0,0.952]
[1736823617411,0.4729,3159.4,3159.0,0.952]
[1736823617619,0.31665,3159.2,3159.0,0.952]
[1736823618312,0.4729,3159.4,3159.0,0.952]
[1736823618515,0.23869759,3159.2,3159.0,1.26866]
[1736823620012,0.55534759,3159.2,3159.0,0.952]
[1736823620510,0.55534759,3159.2,3159.0,1.26867]
[1736823621207,0.23869759,3159.2,3159.0,1.26867]
[1736823621404,0.23869759,3159.2,3159.1,0.31666]
[1736823621715,3.2078,3160.0,3159.4,0.31662]
[1736823621911,3.6919,3160.0,3159.5,1.4366]
[1736823622418,3.6919,3160.0,3159.5,1.75321]
[1736823622717,0.31659,3159.8,3159.6,0.3166]
[1736823623014,0.3166,3159.7,3159.5,1.4366]
[1736823623203,0.7728,3159.7,3159.5,1.4366]
[1736823623412,0.4562,3159.7,3159.5,1.4366]
[1736823623609,0.4562,3159.7,3159.5,1.75321]
[1736823625220,0.4562,3159.7,3159.5,1.4366]
[1736823625611,0.4562,3159.7,3159.5,1.75321]
[1736823625914,0.4562,3159.7,3159.6,0.31661]
[1736823627610,0.4562,3159.7,3159.5,1.4366]
[1736823627811,0.31659,3159.8,3159.5,2.7156]
[1736823628005,0.31659,3159.8,3159.6,0.3166]
[1736823628214,0.31659,3159.8,3159.5,2.7156]
[1736823628415,0.31659,3159.8,3159.5,3.03221]
[1736823629720,3.2078,3160.0,3159.5,2.7156]
[1736823629920,4.12502361,3160.2,3159.6,0.31661]
[1736823630219,0.31659,3159.8,3159.6,0.31661]
[1736823630914,3.48458178,3160.2,3159.6,0.31661]
[1736823631214,0.31659,3159.8,3159.6,0.31661]
[1736823631619,0.31658,3159.9,3159.6,0.31661]
[1736823632520,3.48458178,3160.2,3159.6,0.31661]
[1736823632819,0.31658,3159.9,3159.6,0.31661]
[1736823633020,0.55349839,3159.9,3159.6,0.31661]
[1736823633321,0.4773,3159.8,3159.6,0.31661]
[1736823633822,0.4773,3159.8,3159.7,0.31662]
[1736823634522,0.29701335,3160.2,3159.7,2.54178178]
[1736823634719,0.4592,3160.2,3160.0,0.31659]
[1736823635625,0.4592,3160.2,3160.1,0.4547]
[1736823635921,0.4592,3160.2,3160.1,0.77128]
[1736823636925,3.2078,3160.4,3160.1,0.4547]
[1736823637124,3.2078,3160.4,3160.3,0.31656]
[1736823639023,3.2078,3160.8,3160.3,2.54178178]
[1736823639430,3.2078,3160.8,3160.7,0.31652]
[1736823643024,3.2078,3160.8,3160.7,1.76872]
[1736823644530,0.4749,3161.1,3161.0,0.31649]
[1736823646636,0.4749,3161.1,3160.9,1.279]
[1736823647030,0.4749,3161.1,3160.9,1.5955]
[1736823648740,0.4749,3161.1,3160.9,1.279]
[1736823648939,0.4749,3161.1,3161.0,0.31649]
[1736823650236,0.4749,3161.1,3160.9,1.5955]
[1736823650954,0.4749,3161.1,3161.0,0.31649]
[1736823651954,0.4749,3161.1,3160.9,1.5955]
[1736823652854,0.31651,3160.9,3160.7,1.4522]
[1736823653160,0.31651,3160.9,3160.7,1.279]
[1736823653353,0.4866,3160.8,3160.7,1.279]
[1736823653554,0.4866,3160.8,3160.7,1.59552]
[1736823654256,0.7791,3161.0,3160.7,1.59552]
[1736823655857,0.7791,3161.0,3160.8,0.31651]
[1736823656254,0.7791,3161.0,3160.7,1.59552]
[1736823656949,0.7791,3161.0,3160.8,0.31651]
[1736823658259,0.31651,3160.9,3160.7,1.59552]
[1736823658557,0.7791,3161.0,3160.7,1.59552]
[1736823659348,0.7791,3161.0,3160.8,0.31651]
[1736823659756,0.7791,3161.0,3160.7,1.59552]
[1736823660059,0.7791,3161.0,3160.8,0.31651]
[1736823660253,0.4626,3161.0,3160.8,0.31651]
[1736823660557,0.4626,3161.0,3160.8,0.77651]
[1736823660762,0.77909,3161.0,3160.8,0.77651]
[1736823661052,3.2078,3160.9,3160.3,3.2078]
[1736823661253,0.31655,3160.4,3160.3,3.2078]
[1736823661461,0.31654,3160.5,3160.3,3.52436]
[1736823662165,0.31654,3160.5,3160.3,3.2078]
[1736823662861,0.4772,3160.7,3160.6,0.31653]
[1736823664457,0.4772,3160.7,3160.6,0.79843]
[1736823664767,0.69665285,3161.0,3160.8,0.31651]
[1736823665064,0.4951,3160.9,3160.7,0.31652]
[1736823665564,0.4951,3160.9,3160.8,0.77201]
[1736823668468,0.4951,3160.9,3160.8,0.4555]
[1736823669561,0.4951,3160.9,3160.8,0.77201]
[1736823670866,0.31648,3161.2,3160.8,0.4555]
[1736823671054,0.4733,3161.1,3161.0,0.31649]
[1736823671560,0.4733,3161.1,3160.9,0.3165]
[1736823672766,0.4733,3161.1,3161.0,0.31649]
[1736823673666,3.6849,3161.3,3161.1,0.31648]
[1736823673667,3.2078,3161.3,3161.1,0.31648]
[1736823673865,0.4829,3161.2,3161.1,0.31648]
[1736823674564,0.4829,3161.2,3161.1,0.80528]
[1736823676065,3.2078,3161.3,3161.2,0.31647]
[1736823676274,0.4833,3161.5,3161.2,4.13625178]
[1736823676568,0.9492,3161.5,3161.2,3.81978178]
[1736823676762,0.9492,3161.5,3161.3,0.31646]
[1736823678460,0.9492,3161.5,3161.2,3.81978178]
[1736823678771,0.23542376,3161.6,3161.5,0.31644]
[1736823678971,3.2078,3161.7,3161.5,2.85822178]
[1736823679268,0.4732,3161.6,3161.5,2.85822178]
[1736823680664,0.4732,3161.6,3161.5,2.54178178]
[1736823681371,3.2078,3162.1,3161.5,2.54178178]
[1736823681560,3.2078,3162.9,3162.0,2.54178178]
[1736823681764,3.2078,3162.9,3161.9,3.2078]
[1736823681765,0.31631,3162.8,3162.7,2.54178178]
[1736823681962,4.1695,3162.9,3162.7,2.54178178]
[1736823682161,3.7073,3162.9,3162.8,0.31631]
[1736823682366,3.7073,3162.9,3162.7,2.85810178]
[1736823683173,3.2078,3162.9,3162.8,1.59431]
[1736823683371,3.2078,3162.9,3162.8,1.278]
[1736823686062,3.6675,3162.9,3162.8,1.278]
[1736823686568,3.6675,3162.9,3162.1,2.54178178]
[1736823686569,6.20928178,3162.9,3162.1,2.54178178]
[1736823686770,0.31638,3162.2,3161.8,2.54178178]
[1736823686965,1.24239,3162.1,3161.8,2.54178178]
[1736823687164,0.926,3162.1,3161.8,2.85819178]
[1736823688173,3.2078,3162.5,3161.8,2.54178178]
[1736823688367,0.9427,3162.4,3162.2,0.31637]
[1736823688565,0.9427,3162.4,3162.1,2.85816178]
[1736823689172,0.9427,3162.4,3162.1,2.54178178]
[1736823689471,0.9427,3162.4,3162.1,2.85816178]
[1736823689772,1.25906,3162.4,3162.1,2.54178178]
[1736823689966,1.25906,3162.4,3162.0,0.31638]
[1736823690164,0.4527,3162.3,3161.7,1.265]
[1736823690365,0.31639,3162.1,3161.7,2.85842]
[1736823691469,0.4527,3162.3,3161.7,2.85842]
[1736823691668,0.31639,3162.0,3161.7,2.85842]
[1736823691865,0.31639,3162.0,3161.7,1.59342]
[1736823692066,0.4899,3161.9,3161.7,1.277]
[1736823692266,0.4899,3161.9,3161.7,1.59342]
[1736823693770,0.31644,3161.6,3161.4,0.9589]
[1736823693968,0.4528,3161.8,3161.4,2.2359]
[1736823694173,0.76921,3161.8,3161.4,2.55234]
[1736823694470,0.31641,3161.8,3161.4,2.55234]
[1736823695073,0.9427,3161.9,3161.5,0.31644]
[1736823695274,0.31641,3161.8,3161.5,1.59344]
[1736823695968,3.6977,3161.9,3161.7,0.31642]
[1736823696376,3.6977,3161.9,3161.5,4.13522178]
[1736823696567,4.01411,3161.9,3161.5,4.13522178]
[1736823697069,4.01411,3161.9,3161.5,3.81878178]
[1736823697370,3.6977,3161.9,3161.6,0.31643]
[1736823697572,4.0141,3161.9,3161.6,0.31643]
[1736823698475,0.31641,3161.8,3161.5,4.13522178]
[1736823698873,0.31641,3161.8,3161.5,3.81878178]
[1736823699071,0.31641,3161.8,3161.5,4.13522178]
[1736823699673,0.31642,3161.7,3161.5,1.277]
[1736823699874,3.6977,3161.9,3161.5,3.81878178]
[1736823700070,3.2078,3161.9,3161.5,3.81878178]
[1736823700274,3.2078,3161.9,3161.8,0.31641]
[1736823700476,3.2078,3161.9,3161.7,0.31642]
[1736823704175,3.2078,3161.9,3161.6,0.31643]
[1736823704585,3.2078,3161.9,3161.7,0.31642]
[1736823705077,3.2078,3161.9,3161.5,3.81878178]
[1736823705276,3.2078,3161.9,3161.6,0.31643]
[1736823705575,3.2078,3161.9,3161.6,0.31642]
[1736823705983,3.2078,3161.9,3161.5,3.81878178]
[1736823706281,3.2078,3161.9,3161.8,2.54178178]
[1736823706482,3.2078,3161.9,3161.8,2.85819178]
[1736823706683,0.31638,3162.2,3161.8,2.54178178]
[1736823706876,0.31639,3162.1,3161.8,2.54178178]
[1736823707081,3.2078,3162.1,3161.6,0.31643]
[1736823707276,0.3164,3161.9,3161.6,0.31643]
[1736823707678,0.31643,3161.7,3161.5,1.277]
[1736823708683,3.2078,3161.7,3161.4,0.9195]
[1736823708981,2.54178178,3161.5,3160.6,5.74958178]
[1736823709187,3.2078,3161.1,3160.7,1.7366]
[1736823709378,0.3165,3160.9,3160.7,1.7366]
[1736823709781,0.31651,3160.8,3160.7,0.4596]
[1736823709981,3.01318178,3160.9,3160.2,1.277]
[1736823710179,0.4714,3160.9,3160.2,1.277]
[1736823710479,0.31653,3160.7,3160.3,0.31656]
[1736823710689,0.31653,3160.7,3160.3,0.80676]
[1736823710876,0.31652,3160.8,3160.4,0.81085]
[1736823711079,0.31652,3160.8,3160.5,0.4963]
[1736823711380,0.4714,3160.9,3160.5,3.03808178]
[1736823711583,0.31653,3160.7,3160.5,0.4963]
[1736823711775,0.31652,3160.8,3160.5,0.4963]
[1736823713983,0.4714,3160.9,3160.5,0.4963]
[1736823714180,0.31653,3160.7,3160.5,0.4963]
[1736823715082,0.31652,3160.8,3160.5,0.4963]
[1736823715378,0.4714,3160.9,3160.5,0.4963]
[1736823715583,0.31653,3160.6,3160.5,0.4963]
[1736823715977,0.4714,3160.9,3160.5,0.4963]
[1736823716383,0.55574739,3160.7,3160.5,0.4963]
[1736823716987,0.31653,3160.6,3160.5,0.4963]
[1736823718088,0.31654,3160.5,3160.4,1.277]
[1736823719687,0.31654,3160.6,3160.4,1.277]
[1736823720082,0.31654,3160.5,3160.4,1.277]
[1736823720588,3.44701739,3160.7,3160.4,1.59354]
[1736823720788,0.23921739,3160.7,3160.5,0.31654]
[1736823720986,0.31652,3160.7,3160.6,0.4569]
[1736823722287,3.2078,3160.8,3160.6,0.4569]
[1736823722488,3.52432,3160.8,3160.6,0.4569]
[1736823723287,3.2078,3160.8,3160.6,0.77343]
[1736823723990,3.44920208,3160.8,3160.6,0.77343]
[1736823724193,3.44920208,3160.8,3160.7,0.31652]
[1736823724388,3.44920208,3160.8,3160.6,0.4569]
[1736823724595,0.24140208,3160.8,3160.6,0.4569]
[1736823724995,3.44920208,3160.8,3160.5,0.4565]
[1736823725196,0.31653,3160.6,3160.4,1.277]
[1736823725489,3.94020208,3160.8,3160.4,1.277]
[1736823725693,3.94020208,3160.8,3160.3,1.276]
[1736823725991,0.31655,3160.4,3160.3,1.276]
[1736823726703,3.94020208,3160.8,3159.6,3.94608178]
[1736823726901,0.31658,3160.1,3159.6,1.72093]
[1736823727195,0.31661,3159.9,3159.7,1.277]
[1736823728401,3.6705,3160.0,3159.7,1.277]
[1736823728898,0.3166,3159.9,3159.7,1.277]
[1736823729896,3.6705,3160.0,3159.7,1.277]
[1736823730097,0.3166,3159.9,3159.7,1.277]
[1736823730295,6.21228178,3160.0,3158.9,3.2078]
[1736823730493,0.3167,3158.9,3158.5,0.31674]
[1736823730690,3.5245,3159.0,3158.6,0.31672]
[1736823730991,0.3167,3158.9,3158.5,1.59374]
[1736823731393,0.3167,3158.9,3158.5,0.31674]
[1736823731700,0.3167,3158.9,3158.4,1.59374]
[1736823731994,0.3167,3158.9,3158.5,1.277]
[1736823732496,0.31672,3158.8,3158.5,1.277]
[1736823733795,0.31672,3158.7,3158.3,3.52456]
[1736823733997,0.31672,3158.7,3158.4,1.277]
[1736823733998,0.4816,3158.6,3158.4,1.277]
[1736823736491,0.79834,3158.6,3158.4,1.277]
[1736823737194,0.79834,3158.6,3158.3,3.2078]
[1736823737395,0.31679,3158.0,3157.5,3.52463]
[1736823737594,3.2078,3158.1,3157.5,3.6812]
[1736823737893,2.99368178,3157.9,3157.5,3.2078]
[1736823738096,0.31683,3157.6,3157.5,3.2078]
[1736823738292,2.99368178,3157.9,3157.5,3.2078]
[1736823738500,0.31683,3157.6,3157.5,3.2078]
[1736823738690,0.31683,3157.7,3157.5,3.2078]
[1736823738889,0.31683,3157.7,3157.3,0.4646]
[1736823739295,3.52463,3157.7,3157.3,0.4646]
[1736823740092,0.31684,3157.6,3157.3,0.4646]
[1736823740498,3.52463,3157.7,3157.3,0.4646]
[1736823740891,3.2078,3157.7,3157.3,0.4646]
[1736823741097,3.2078,3157.7,3157.3,0.78146]
[1736823741293,3.2078,3157.7,3157.3,0.4646]
[1736823741603,3.52463,3157.7,3157.3,0.4646]
[1736823743800,3.52463,3157.7,3157.3,0.78146]
[1736823743801,3.2078,3157.7,3157.3,0.78146]
[1736823744002,3.2078,3157.7,3157.4,0.4703]
[1736823744300,3.2078,3157.7,3157.4,0.78715]
[1736823744699,3.2078,3157.7,3157.4,0.4703]
[1736823744900,3.52463,3157.7,3157.4,0.4703]
[1736823745402,3.2078,3157.7,3157.4,0.4703]
[1736823745802,3.2078,3157.7,3157.4,0.78715]
[1736823746703,3.2078,3157.7,3157.5,0.31684]
[1736823746900,3.2078,3157.7,3157.4,0.4703]
[1736823747097,3.2078,3157.7,3157.5,0.31684]
[1736823750297,3.2078,3157.7,3157.6,0.31683]
[1736823750800,3.2078,3157.7,3157.4,1.7473]
[1736823751108,3.2078,3157.7,3157.5,0.31683]
[1736823751311,3.2078,3157.7,3157.5,0.31684]
[1736823752705,3.2078,3157.7,3157.6,0.31683]
[1736823753505,3.2078,3157.7,3157.4,1.7473]
[1736823753703,3.2078,3157.7,3157.5,0.31684]
[1736823753899,3.2078,3157.7,3157.4,1.7473]
[1736823754204,3.2078,3157.7,3157.5,0.31684]
[1736823754907,3.2078,3157.7,3157.4,1.7473]
[1736823755095,3.2078,3157.7,3157.5,0.31684]
[1736823755709,0.31684,3157.5,3157.3,0.4646]
[1736823755910,3.2078,3157.7,3157.1,3.2078]
[1736823756106,0.31687,3157.3,3157.1,3.2078]
[1736823756298,1.28246,3157.4,3157.1,3.52468]
[1736823756498,0.79365,3157.4,3157.1,3.2078]
[1736823757802,0.79365,3157.4,3157.1,3.52468]
[1736823758107,3.2078,3157.7,3157.5,0.31684]
[1736823758310,3.2078,3157.7,3157.4,0.31685]
[1736823758311,3.52463,3157.7,3157.4,0.31685]
[1736823758506,0.48,3157.6,3157.4,0.31685]
[1736823759102,0.48,3157.6,3157.1,3.2078]
[1736823759311,3.2078,3157.7,3157.5,2.54178178]
[1736823759503,3.2078,3157.7,3157.6,1.74503]
[1736823760203,0.79678,3158.2,3157.6,1.4282]
[1736823760204,3.2078,3158.2,3157.6,1.4282]
[1736823760506,3.2078,3158.2,3158.1,0.31678]
[1736823761209,3.2078,3158.2,3157.8,2.54178178]
[1736823761509,3.2078,3158.2,3158.1,0.31678]
[1736823761707,3.2078,3158.2,3158.0,0.31679]
[1736823762106,3.2078,3158.2,3157.8,2.54178178]
[1736823762403,3.2078,3158.2,3158.0,0.31679]
[1736823763010,3.2078,3158.2,3157.8,2.54178178]
[1736823763207,0.31681,3157.9,3157.7,1.277]
[1736823763411,3.2078,3157.8,3157.4,0.31685]
[1736823763604,0.31683,3157.7,3157.3,1.59385]
[1736823764008,0.4884,3157.6,3157.3,1.59385]
[1736823764406,0.4884,3157.6,3157.3,1.277]
[1736823764610,0.4884,3157.6,3157.4,0.31685]
[1736823765212,0.4884,3157.6,3157.3,1.59386]
[1736823765413,0.80524,3157.6,3157.3,1.277]
[1736823765911,0.80524,3157.6,3157.2,1.59387]
[1736823767308,0.80524,3157.6,3157.3,0.31686]
[1736823767517,0.4884,3157.6,3157.3,0.31686]
[1736823767913,0.80523,3157.6,3157.3,0.31686]
[1736823770118,3.2078,3157.4,3157.2,1.277]
[1736823770312,3.2078,3157.4,3157.2,1.59386]
[1736823770811,3.2078,3157.4,3157.2,1.59387]
[1736823771213,3.2078,3157.4,3157.2,1.277]
[1736823771522,3.2078,3157.4,3157.2,1.59387]
[1736823771811,3.2078,3157.4,3157.2,1.277]
[1736823773107,3.2078,3157.4,3156.9,2.54178178]
[1736823773309,0.4767,3157.3,3156.8,0.31691]
[1736823773510,0.31688,3157.1,3156.9,1.277]
[1736823773920,0.4872,3157.0,3156.8,1.59391]
[1736823774418,0.4872,3157.0,3156.9,0.3169]
[1736823775420,0.4767,3157.3,3157.1,0.31688]
[1736823775615,3.2078,3157.4,3157.2,0.492]
[1736823775824,3.2078,3157.4,3157.2,0.80887]
[1736823776120,3.52466,3157.4,3157.2,0.492]
[1736823777026,3.2078,3157.4,3157.2,0.492]
[1736823777319,3.52466,3157.4,3157.2,0.492]
[1736823777521,3.2078,3157.4,3157.2,0.492]
[1736823777721,3.2078,3157.4,3157.2,0.80887]
[1736823778117,3.52466,3157.4,3157.2,0.492]
[1736823778316,3.52466,3157.4,3157.2,0.80887]
[1736823779123,3.2078,3157.4,3157.2,0.492]
[1736823779328,3.2078,3157.4,3157.3,0.31686]
[1736823779519,3.2078,3157.4,3157.3,1.25916]
[1736823781025,0.4872,3157.7,3157.6,0.31683]
[1736823781819,0.4872,3157.7,3157.5,1.277]
[1736823781820,0.24021952,3158.2,3157.5,3.81878178]
[1736823782026,0.452,3158.2,3157.8,2.54178178]
[1736823782225,3.2078,3158.3,3157.9,0.9273]
[1736823782524,3.2078,3158.3,3158.1,0.31678]
[1736823782720,3.2078,3158.3,3157.9,1.3927]
[1736823782919,0.9678,3158.6,3158.1,0.31678]
[1736823782920,0.31674,3158.5,3158.1,0.31678]
[1736823783121,0.31674,3158.5,3158.2,1.59377]
[1736823783822,0.31676,3158.3,3158.2,1.277]
[1736823784217,0.31676,3158.3,3157.8,3.52461]
[1736823784218,3.6615,3158.4,3157.8,3.2078]
[1736823784517,0.3168,3157.9,3157.8,3.2078]
[1736823785027,0.3168,3157.9,3157.5,1.276]
[1736823785028,0.31683,3157.6,3157.5,1.276]
[1736823785923,1.3913,3157.8,3157.1,3.2078]
[1736823786122,0.31686,3157.4,3157.1,3.52468]
[1736823786421,1.3913,3157.8,3157.1,3.52468]
[1736823786422,0.81207,3157.3,3157.1,3.2078]
[1736823787326,0.31687,3157.2,3157.1,3.2078]
[1736823787629,0.4699,3157.2,3157.1,3.2078]
[1736823787827,0.4699,3157.2,3157.0,1.59289]
[1736823788228,0.4699,3157.2,3157.0,1.276]
[1736823788921,0.4952,3157.3,3157.0,1.276]
[1736823789122,3.2078,3157.4,3157.1,0.31688]
[1736823789322,0.9443,3157.7,3157.2,0.4972]
[1736823789633,0.24187643,3158.0,3157.2,0.4972]
[1736823789634,3.2078,3158.2,3157.5,2.54178178]
[1736823789824,0.492,3158.1,3157.9,0.3168]
[1736823790023,0.492,3158.1,3157.7,1.7445]
[1736823790226,3.2078,3158.2,3157.8,3.03898178]
[1736823790528,3.2078,3158.2,3158.1,0.31678]
[1736823790728,3.2078,3158.2,3158.1,2.85856178]
[1736823795532,3.2078,3158.2,3158.1,0.31678]
[1736823795736,3.2078,3158.4,3158.2,0.31677]
[1736823798536,3.2078,3158.4,3158.1,0.31678]
[1736823798737,3.2078,3158.4,3158.2,0.31677]
[1736823799242,0.80874,3158.6,3158.2,0.31677]
[1736823799444,3.2078,3158.4,3158.2,0.31677]
[1736823799643,3.2078,3158.4,3157.8,3.03898178]
[1736823799937,3.2078,3158.4,3158.1,0.31678]
[1736823800144,0.31676,3158.3,3157.9,0.3168]
[1736823800333,3.52456,3158.4,3158.0,0.31679]
[1736823800641,3.2078,3158.4,3157.8,3.03898178]
[1736823800836,3.2078,3158.4,3158.1,0.31678]
[1736823801041,0.31677,3158.2,3157.9,0.3168]
[1736823801234,0.31677,3158.2,3158.0,1.276]
[1736823801440,0.9449,3158.1,3158.0,1.276]
[1736823804643,0.9449,3158.1,3157.8,0.81401]
[1736823804843,1.26169,3158.1,3157.9,1.276]
[1736823805045,0.9449,3158.1,3157.9,1.276]
[1736823805347,0.9449,3158.1,3157.9,1.59279]
[1736823805544,0.9449,3158.1,3158.0,0.31679]
[1736823805847,0.9449,3158.1,3157.9,1.5928]
[1736823806043,1.26169,3158.1,3157.9,1.276]
[1736823806245,0.9449,3158.1,3157.9,1.276]
[1736823806445,0.9449,3158.1,3157.9,1.5928]
[1736823806651,0.9449,3158.1,3158.0,0.31679]
[1736823806947,0.9449,3158.1,3157.9,1.59279]
[1736823807349,0.9449,3158.1,3158.0,0.31679]
[1736823807850,3.2078,3158.4,3157.9,1.276]
[1736823808054,0.4853,3158.3,3158.1,0.31678]
[1736823808252,0.4853,3158.3,3158.0,0.9279]
[1736823808453,0.4853,3158.3,3158.1,0.31678]
[1736823808843,0.4853,3158.3,3157.9,1.276]
[1736823808844,0.80207,3158.3,3157.9,1.5928]
[1736823809151,0.80207,3158.3,3158.0,0.31679]
[1736823809542,0.31679,3158.1,3157.9,1.276]
[1736823809746,0.4745,3158.0,3157.8,1.59281]
[1736823810054,0.4745,3158.0,3157.7,0.4984]
[1736823810250,0.7913,3158.0,3157.8,1.276]
[1736823810554,0.4745,3158.0,3157.8,1.276]
[1736823811351,0.4745,3158.0,3157.8,1.59281]
[1736823811552,0.4745,3158.0,3157.9,0.3168]
[1736823813949,0.4745,3158.0,3157.8,1.276]
[1736823814352,0.4745,3158.0,3157.9,0.3168]
[1736823815456,0.4745,3158.0,3157.8,1.276]
[1736823815457,0.4745,3158.0,3157.8,1.59281]
[1736823815660,0.4745,3158.0,3157.9,0.3168]
[1736823816558,0.4745,3158.0,3157.5,0.4551]
[1736823816854,0.31684,3157.6,3157.3,3.52466]
[1736823817060,0.4932,3157.5,3157.3,3.52466]
[1736823818655,0.4668,3157.4,3157.3,3.52466]
[1736823818861,3.2078,3158.0,3157.3,3.2078]
[1736823819060,0.4707,3157.9,3157.6,0.31682]
[1736823820360,0.4707,3157.9,3157.4,3.01598178]
[1736823820361,0.31681,3157.8,3157.5,0.31684]
[1736823820769,0.4707,3157.9,3157.4,0.4742]
[1736823820965,0.31682,3157.7,3157.4,0.4742]
[1736823821971,3.01248178,3157.9,3157.3,3.2078]
[1736823822268,0.31684,3157.6,3157.3,3.2078]
[1736823822665,0.4707,3157.9,3157.2,1.276]
[1736823822860,0.78751,3157.9,3157.5,0.31684]
[1736823823057,0.4707,3157.9,3157.5,0.31684]
[1736823823268,0.31681,3157.8,3157.4,0.31685]
[1736823823470,0.31681,3157.8,3157.2,4.4838]
[1736823823471,0.4707,3157.9,3157.2,4.4838]
[1736823823662,0.31682,3157.8,3157.2,4.4838]
[1736823823866,0.31682,3157.8,3157.5,0.31684]
[1736823824267,0.31682,3157.8,3157.6,0.4588]
[1736823824873,0.29721951,3158.1,3157.8,0.31681]
[1736823825073,0.4803,3158.2,3157.7,0.9192]
[1736823825371,0.79708,3158.2,3157.8,0.3168]
[1736823826166,0.4803,3158.2,3157.7,0.9192]
[1736823826472,0.3168,3157.9,3157.7,0.9192]
[1736823826671,0.3168,3158.0,3157.7,0.9192]
[1736823826966,0.79708,3158.2,3157.8,0.31681]
[1736823827173,0.4803,3158.2,3157.7,0.9192]
[1736823827472,0.4803,3158.2,3157.8,0.31681]
[1736823827671,0.79708,3158.2,3157.8,0.31681]
[1736823828266,0.31678,3158.1,3157.8,0.31681]